{"text_format":"1","workbook":"xlsx","n_sheets":4,"sheets":["F1A","F1B","F1C","F1Q"],"not_rendered":{"charts":0,"images":0,"macros":1,"external_links":0,"defined_names":13,"comments":0,"pivot_tables":0},"unopened":[],"bounds":{"document_bytes":16777216,"sheet_cells":100000,"rows_first":2000,"rows_last":500,"rows_between":2000,"halvings":0,"cell_chars":16384,"cell_head_chars":4096},"cells_cut":0,"cells_raw":0,"read":"whole","date_system":"1900"}

{"sheet":"F1A","index":0,"n_rows":21,"n_cols":18,"rows_kept":21,"cut":false,"hidden":false,"merged":[[3,16,4,16],[3,17,4,17],[3,0,4,0],[3,1,4,2],[3,3,4,3],[3,4,4,4],[3,5,3,11],[3,13,3,15],[3,12,4,12]]}
[null,null,null,null,null,null,"8. Memorijal Mustafa Hadžović 2017"]
[null,null,null,null,null,null,"F1-A  -  REZULTATI / RESULTS"]
[]
["Entry No","First and last name",null,"Country","FAI Licence","Round",null,null,null,null,null,null,"Total","Flyoff",null,null,"Total","No."]
[null,null,null,null,null,1,2,3,4,5,6,7,null,1,2,3]
[5,"Miroslav Mandichev",null,"BUL","BUL 00670",240,180,155,180,180,null,null,{"$f":"SUM(F6:L6)","v":935},null,null,null,{"$f":"SUM(M6:O6)","v":935},1]
[8,"Robert Bjelajac",null,"BIH","F-401",101,180,180,68,180,null,null,{"$f":"SUM(F7:L7)","v":709},null,null,null,{"$f":"SUM(M7:O7)","v":709},2]
[16,"Faik Čičak",null,"BIH","F-",240,168,45,120,133,null,null,{"$f":"SUM(F8:L8)","v":706},null,null,null,{"$f":"SUM(M8:O8)","v":706},3]
[3,"Bakir Limo","JR","BIH","F-475",209,131,0,0,0,null,null,{"$f":"SUM(F9:L9)","v":340},null,null,null,{"$f":"SUM(M9:O9)","v":340},4]
[14,"Miloš Budimčić",null,"BIH","F-456",146,118,75,0,0,null,null,{"$f":"SUM(F10:L10)","v":339},null,null,null,{"$f":"SUM(M10:O10)","v":339},5]
[4,"Elmin Kerkez",null,"BIH","F-076",114,42,170,0,0,null,null,{"$f":"SUM(F11:L11)","v":326},null,null,null,{"$f":"SUM(M11:O11)","v":326},6]
[15,"Sara Budimčić","JR","BIH","F-459",240,85,0,0,0,null,null,{"$f":"SUM(F12:L12)","v":325},null,null,null,{"$f":"SUM(M12:O12)","v":325},7]
[9,"Željko Marić",null,"BIH","F-109",129,13,0,0,0,null,null,{"$f":"SUM(F13:L13)","v":142},null,null,null,{"$f":"SUM(M13:O13)","v":142},8]
[2,"Faruk Burić","JR","BIH","F-476",15,0,0,0,0,null,null,{"$f":"SUM(F14:L14)","v":15},null,null,null,{"$f":"SUM(M14:O14)","v":15},9]
[1,"Adin Ramadanović",null,"BIH","F-116",0,0,0,0,0,null,null,{"$f":"SUM(F15:L15)","v":0},null,null,null,{"$f":"SUM(M15:O15)","v":0},10]
[13,null,null,null,null," ",null,null,null,null,null,null,{"$f":"SUM(F16:L16)","v":0},null,null,null,{"$f":"SUM(M16:O16)","v":0},11]
[12,null,null,null,null,null,null,null,null,null,null,null,{"$f":"SUM(F17:L17)","v":0},null,null,null,{"$f":"SUM(M17:O17)","v":0},12]
[10,null,null,null,null,null,null,null,null,null,null,null,{"$f":"SUM(F18:L18)","v":0},null,null,null,{"$f":"SUM(M18:O18)","v":0},13]
[6,null,null,null,null,null,null,null,null,null,null,null,{"$f":"SUM(F19:L19)","v":0},null,null,null,{"$f":"SUM(M19:O19)","v":0},14]
[7,null,null,null,null,null,null,null,null,null,null,null,{"$f":"SUM(F20:L20)","v":0},null,null,null,{"$f":"SUM(M20:O20)","v":0},15]
[11,null,null,null,null,null,null,null,null,null,null,null,{"$f":"SUM(F21:L21)","v":0},null,null,null,{"$f":"SUM(M21:O21)","v":0},16]

{"sheet":"F1B","index":1,"n_rows":17,"n_cols":18,"rows_kept":17,"cut":false,"hidden":false,"merged":[[3,13,3,15],[3,16,4,16],[3,17,4,17],[3,0,4,0],[3,1,4,2],[3,3,4,3],[3,4,4,4],[3,5,3,11],[3,12,4,12]]}
[null,null,null,null,null,null,"8. Memorijal Mustafa Hadžović 2017"]
[null,null,null,null,null,null,"F1-B  -  REZULTATI / RESULTS"]
[]
["Entry No","First and last name",null,"Country","FAI Licence","Round",null,null,null,null,null,null,"Total","Flyoff",null,null,"Total","No."]
[null,null,null,null,null,1,2,3,4,5,6,7,null,1,2,3]
[7,"Ismet Yurtseven",null,"TUR","TUR 007",228,180,180,180,132,null,null,{"$f":"SUM(F6:L6)","v":900},null,null,null,{"$f":"SUM(M6:O6)","v":900},1]
[3,"Predrag Šarkinović",null,"BIH","F-056",240,180,30,141,149,null,null,{"$f":"SUM(F7:L7)","v":740},null,null,null,{"$f":"SUM(M7:O7)","v":740},2]
[6,"Soniboj Sabo",null,"CRO","F-080",0,180,180,0,0,null,null,{"$f":"SUM(F8:L8)","v":360},null,null,null,{"$f":"SUM(M8:O8)","v":360},3]
[1,null,null,null,null,null,null,null,null,null,null,null,{"$f":"SUM(F9:L9)","v":0},null,null,null,{"$f":"SUM(M9:O9)","v":0},4]
[2,null,null,null,null,null,null,null,null,null,null,null,{"$f":"SUM(F10:L10)","v":0},null,null,null,{"$f":"SUM(M10:O10)","v":0},5]
[4,null,null,null,null,null,null,null,null,null,null,null,{"$f":"SUM(F11:L11)","v":0},null,null,null,{"$f":"SUM(M11:O11)","v":0},6]
[5,null,null,null,null,null,null,null,null,null,null,null,{"$f":"SUM(F12:L12)","v":0},null,null,null,{"$f":"SUM(M12:O12)","v":0},7]
[8,null,null,null,null,null,null,null,null,null,null,null,{"$f":"SUM(F13:L13)","v":0},null,null,null,{"$f":"SUM(M13:O13)","v":0},8]
[9,null,null,null,null,null,null,null,null,null,null,null,{"$f":"SUM(F14:L14)","v":0},null,null,null,{"$f":"SUM(M14:O14)","v":0},9]
[10,null,null,null,null,null,null,null,null,null,null,null,{"$f":"SUM(F15:L15)","v":0},null,null,null,{"$f":"SUM(M15:O15)","v":0},10]
[11,null,null,null,null,null,null,null,null,null,null,null,{"$f":"SUM(F16:L16)","v":0},null,null,null,{"$f":"SUM(M16:O16)","v":0},11]
[12,null,null,null,null,null,null,null,null,null,null,null,{"$f":"SUM(F17:L17)","v":0},null,null,null,{"$f":"SUM(M17:O17)","v":0},12]

{"sheet":"F1C","index":2,"n_rows":9,"n_cols":18,"rows_kept":9,"cut":false,"hidden":false,"merged":[[3,13,3,15],[3,16,4,16],[3,17,4,17],[3,0,4,0],[3,1,4,2],[3,3,4,3],[3,4,4,4],[3,5,3,11],[3,12,4,12]]}
[null,null,null,null,null,null,"8. Memorijal Mustafa Hadžović 2017"]
[null,null,null,null,null,null,"F1-C  -  REZULTATI / RESULTS"]
[]
["Entry No","First and last name",null,"Country","FAI Licence","Round",null,null,null,null,null,null,"Total","Flyoff",null,null,"Total","No."]
[null,null,null,null,null,1,2,3,4,5,6,7,null,1,2,3]
[1,"Andrea Banci",null,"ITA","ITA 10116",null,null,null,null,null,null,null,{"$f":"SUM(F6:L6)","v":0},null,null,null,{"$f":"SUM(M6:O6)","v":0},1]
[2,"Damjan Žulič",null,"SLO","164.002",null,null,null,null,null,null,null,{"$f":"SUM(F7:L7)","v":0},null,null,null,{"$f":"SUM(M7:O7)","v":0},2]
[3,"Giorgio Venuti",null,"ITA","ITA 3143",null,null,null,null,null,null,null,{"$f":"SUM(F8:L8)","v":0},null,null,null,{"$f":"SUM(M8:O8)","v":0},3]
[4,"Željko Grepl",null,"CRO","CRO 70025",null,null,null,null,null,null,null,{"$f":"SUM(F9:L9)","v":0},null,null,null,{"$f":"SUM(M9:O9)","v":0},4]

{"sheet":"F1Q","index":3,"n_rows":12,"n_cols":18,"rows_kept":12,"cut":false,"hidden":false,"merged":[[3,13,3,15],[3,16,4,16],[3,17,4,17],[3,0,4,0],[3,1,4,2],[3,3,4,3],[3,4,4,4],[3,5,3,11],[3,12,4,12]]}
[null,null,null,null,null,null,"8. Memorijal Mustafa Hadžović 2017"]
[null,null,null,null,null,null,"F1-Q  -  REZULTATI / RESULTS"]
[]
["Entry No","First and last name",null,"Country","FAI Licence","Round",null,null,null,null,null,null,"Total","Flyoff",null,null,"Total","No."]
[null,null,null,null,null,1,2,3,4,5,6,7,null,1,2,3]
[1,"Nedjeljko Zelić",null,"BIH","F-102",null,null,null,null,null,null,null,{"$f":"SUM(F6:L6)","v":0},null,null,null,{"$f":"SUM(M6:O6)","v":0},1]
[2,"Oton Sabo",null,"BIH","F-103",null,null,null,null,null,null,null,0,null,null,null,0,2]
[3,"Robert Martinović",null,"BIH","F-112",null,null,null,null,null,null,null,0,null,null,null,0,3]
[4,"Soniboj Sabo",null,"CRO","F-080",null,null,null,null,null,null,null,0,null,null,null,0,4]
[5,"Željko Grepl",null,"CRO","CRO 70025",null,null,null,null,null,null,null,0,null,null,null,0,5]
[6,"Željko Marić",null,"BIH","F-109",null,null,null,null,null,null,null,0,null,null,null,0,6]
[7,null,null,null,null,null,null,null,null,null,null,null,0,null,null,null,0,7]